fUSD/lending_fUSD_20251130
["ID","MTS","AMOUNT","RATE_DAILY","PERIOD"]
[395191927,1764531038259,-500.0,0.00013387,2]
[395191928,1764531038268,-500.0,0.00013387,2]
[395191929,1764531038279,-500.0,0.00013387,2]
[395191930,1764531038288,-500.0,0.00013387,2]
[395191931,1764531038298,-500.0,0.00013387,2]
[395191933,1764531038308,-500.0,0.00013387,2]
[395191935,1764531038317,-500.0,0.00013387,2]
[395191937,1764531038327,-500.0,0.00013387,2]
[395191939,1764531038337,-500.0,0.00013387,2]
[395191941,1764531038347,-500.0,0.00013387,2]
[395191943,1764531038356,-500.0,0.00013387,2]
[395191945,1764531038365,-3062.31683738,0.00013583,2]
[395191947,1764531038377,-727218.87578714,0.00013583,2]
[395191949,1764531038386,-429.32,0.00013683,2]
[395191951,1764531038395,-3132.09673457,0.00013683,2]
[395191953,1764531038404,-5497.54128669,0.00013683,2]
[395191955,1764531038413,-500.0,0.00013683,2]
[395191957,1764531038422,-500.0,0.00013683,2]
[395191959,1764531038431,-500.0,0.00013683,2]
[395191961,1764531038442,-500.0,0.00013683,2]
[395191963,1764531038452,-500.0,0.00013683,2]
[395191965,1764531038461,-500.0,0.00013683,2]
[395191967,1764531038471,-500.0,0.00013683,2]
[395191969,1764531038481,-500.0,0.00013683,2]
[395191971,1764531038490,-500.0,0.00013683,2]
[395191973,1764531038500,-500.0,0.00013683,2]
[395191975,1764531038510,-500.0,0.00013683,2]
[395191977,1764531038519,-500.0,0.00013683,2]
[395191979,1764531038529,-500.0,0.00013683,2]
[395191981,1764531038540,-500.0,0.00013683,2]
[395191983,1764531038550,-500.0,0.00013683,2]
[395191985,1764531038560,-500.0,0.00013683,2]
[395191987,1764531038570,-197.92719606,0.00013683,2]
[395191989,1764531038579,-17005.2051,0.00013683,2]
[395191992,1764531038592,-589.75,0.00013699,2]
[395191994,1764531038601,-151.0,0.00013775,2]
[395191996,1764531038611,-151.0,0.00013775,2]
[395191998,1764531038621,-151.0,0.00013775,2]
[395191999,1764531038631,-151.0,0.00013775,2]
[395192002,1764531038641,-151.0,0.00013775,2]
[395192004,1764531038651,-151.0,0.00013775,2]
[395192006,1764531038661,-151.0,0.00013775,2]
[395192007,1764531038671,-151.0,0.00013775,2]
[395192008,1764531038679,-151.0,0.00013775,2]
[395192009,1764531038689,-200.0,0.00013775,2]
[395192010,1764531038699,-151.0,0.00013775,2]
[395192011,1764531038708,-151.0,0.00013775,2]
[395192012,1764531038716,-500.0,0.00013775,2]
[395192013,1764531038725,-151.0,0.00013775,2]
[395192014,1764531038734,-500.0,0.00013775,2]
[395192015,1764531038744,-500.0,0.00013775,2]
[395192016,1764531038754,-151.0,0.00013775,2]
[395192017,1764531038764,-500.0,0.00013775,2]
[395192018,1764531038773,-500.0,0.00013775,2]
[395192019,1764531038782,-500.0,0.00013775,2]
[395192020,1764531038791,-500.0,0.00013775,2]
[395192021,1764531038799,-500.0,0.00013775,2]
[395192022,1764531038809,-500.0,0.00013775,2]
[395192023,1764531038817,-500.0,0.00013775,2]
[395192024,1764531038827,-500.0,0.00013775,2]
[395192025,1764531038836,-500.0,0.00013775,2]
[395192026,1764531038845,-500.0,0.00013775,2]
[395192027,1764531038855,-200.0,0.00013775,2]
[395192028,1764531038864,-500.0,0.00013775,2]
[395192029,1764531038873,-500.0,0.00013775,2]
[395192030,1764531038882,-500.0,0.00013775,2]
[395192031,1764531038891,-500.0,0.00013775,2]
[395192032,1764531038901,-500.0,0.00013775,2]
[395192033,1764531038910,-500.0,0.00013775,2]
[395192034,1764531038919,-500.0,0.00013775,2]
[395192035,1764531038928,-500.0,0.00013775,2]
[395192036,1764531038937,-500.0,0.00013775,2]
[395192037,1764531038946,-500.0,0.00013775,2]
[395192038,1764531038955,-500.0,0.00013775,2]
[395192039,1764531038965,-500.0,0.00013775,2]
[395192040,1764531038974,-500.0,0.00013775,2]
[395192041,1764531038984,-500.0,0.00013775,2]
[395192042,1764531038993,-200.0,0.00013775,2]
[395192043,1764531039003,-150.0,0.00013775,2]
[395192044,1764531039013,-500.0,0.00013775,2]
[395192045,1764531039022,-500.0,0.00013775,2]
[395192046,1764531039031,-500.0,0.00013775,2]
[395192047,1764531039041,-500.0,0.00013775,2]
[395192048,1764531039051,-150.0,0.00013775,2]
[395192049,1764531039061,-160.73087474,0.00013775,2]
[395192050,1764531039070,-150.0,0.00013775,2]
[395192051,1764531039079,-500.0,0.00013775,2]
[395192052,1764531039089,-150.0,0.00013775,2]
[395192053,1764531039099,-150.69072968,0.00013777,2]
[395192054,1764531039109,-150.0,0.00013777,2]
[395192055,1764531039118,-150.0,0.00013777,2]
[395192056,1764531039128,-150.0,0.00013777,2]
[395192057,1764531039138,-500.0,0.00013777,2]
[395192058,1764531039148,-150.0,0.00013777,2]
[395192059,1764531039158,-150.0,0.00013777,2]
[395192060,1764531039168,-500.0,0.00013777,2]
[395192061,1764531039178,-150.0,0.00013777,2]
[395192062,1764531039187,-150.0,0.00013777,2]
[395192063,1764531039197,-500.0,0.00013777,2]
[395192064,1764531039207,-500.0,0.00013777,2]
[395192065,1764531039216,-150.0,0.00013777,2]
[395192066,1764531039226,-158.73149787,0.00013777,2]
[395192067,1764531039236,-500.0,0.00013777,2]
[395192068,1764531039248,-500.0,0.00013777,2]
[395192069,1764531039258,-500.0,0.00013782,2]
[395192070,1764531039267,-500.0,0.00013782,2]
[395192071,1764531039277,-500.0,0.00013782,2]
[395192072,1764531039287,-500.0,0.00013782,2]
[395192073,1764531039297,-600.0,0.00013783,2]
[395192074,1764531039306,-7649.1746,0.00013883,2]
[395192075,1764531039316,-1000.0,0.00013883,2]
[395192076,1764531039326,-150.0,0.00013912,2]
[395192077,1764531039336,-625.06872145,0.00013912,2]
[395192078,1764531039346,-500.0,0.00013912,2]
[395192079,1764531039356,-500.0,0.00013912,2]
[395192080,1764531039365,-500.0,0.00013912,2]
[395192081,1764531039375,-150.0,0.00013912,2]
[395192082,1764531039384,-150.0,0.00013912,2]
[395192083,1764531039394,-500.0,0.00013912,2]
[395192084,1764531039404,-150.0,0.00013914,2]
[395192085,1764531039413,-150.0,0.00013914,2]
[395192086,1764531039423,-150.0,0.00013914,2]
[395192087,1764531039432,-500.0,0.00013914,2]
[395192088,1764531039441,-150.0,0.00013914,2]
[395192089,1764531039451,-500.0,0.00013914,2]
[395192090,1764531039460,-150.0,0.00013914,2]
[395192091,1764531039470,-500.0,0.00013914,2]
[395192092,1764531039479,-500.0,0.00013914,2]
[395192093,1764531039489,-500.0,0.00013914,2]
[395192094,1764531039498,-500.0,0.00013914,2]
[395192095,1764531039507,-429.32,0.00013957,2]
[395192096,1764531039516,-301.34471525,0.00013982,2]
[395192097,1764531039525,-500.0,0.00013982,2]
[395192098,1764531039535,-500.0,0.00013982,2]
[395192099,1764531039545,-500.0,0.00013982,2]
[395192100,1764531039554,-5497.54128669,0.0001404,2]
[395192101,1764531039564,-3132.09673448,0.00014048,2]
[395192102,1764531039573,-150.0,0.00014049,2]
[395192103,1764531039583,-185.29372692,0.00014049,2]
[395192104,1764531039592,-500.0,0.00014049,2]
[395192105,1764531039601,-500.0,0.00014049,2]
[395192106,1764531039609,-150.0,0.00014049,2]
[395192107,1764531039618,-150.0,0.00014049,2]
[395192108,1764531039628,-500.0,0.00014049,2]
[395192109,1764531039637,-150.0,0.00014051,2]
[395192110,1764531039646,-150.0,0.00014051,2]
[395192111,1764531039655,-350.0,0.00014051,2]
[395192112,1764531039663,-150.0,0.00014051,2]
[395192113,1764531039672,-500.0,0.00014051,2]
[395192114,1764531039681,-245.9790849,0.00014051,2]
[395192115,1764531039690,-400.0,0.00014051,2]
[395192116,1764531039699,-500.0,0.00014051,2]
[395192117,1764531039708,-450.0,0.00014051,2]
[395192118,1764531039716,-500.0,0.00014051,2]
[395192119,1764531039726,-600.0,0.00014057,2]
[395192120,1764531039735,-475.53829889,0.00014143,2]
[395192121,1764531039744,-150.0,0.00014186,2]
[395192122,1764531039753,-500.0,0.00014186,2]
[395192123,1764531039763,-500.0,0.00014186,2]
[395192124,1764531039773,-150.0,0.00014186,2]
[395192125,1764531039782,-150.0,0.00014186,2]
[395192126,1764531039793,-500.0,0.00014186,2]
[395192127,1764531039803,-200.0,0.00014188,2]
[395192128,1764531039813,-150.0,0.00014188,2]
[395192129,1764531039822,-251.62347752,0.00014188,2]
[395192130,1764531039831,-350.0,0.00014188,2]
[395192131,1764531039841,-500.0,0.00014188,2]
[395192132,1764531039850,-500.0,0.00014188,2]
[395192133,1764531039859,-429.32,0.00014231,2]
[395192134,1764531039868,-195.0,0.00014256,2]
[395192135,1764531039878,-200.0,0.00014323,2]
[395192136,1764531039887,-200.0,0.00014323,2]
[395192137,1764531039897,-280.06662226,0.00014323,2]
[395192138,1764531039906,-500.0,0.00014323,2]
[395192139,1764531039915,-500.0,0.00014323,2]
[395192140,1764531039924,-150.0,0.00014323,2]
[395192141,1764531039934,-150.0,0.00014323,2]
[395192142,1764531039943,-500.0,0.00014323,2]
[395192143,1764531039955,-150.0,0.00014325,2]
[395192144,1764531039964,-500.0,0.00014325,2]
[395192145,1764531039973,-500.0,0.00014325,2]
[395192146,1764531039982,-600.0,0.00014331,2]
[395192147,1764531039992,-5497.54128669,0.00014398,2]
[395192148,1764531040001,-3132.09673448,0.00014413,2]
[395192149,1764531040011,-500.0,0.0001446,2]
[395192150,1764531040021,-500.0,0.0001446,2]
[395192151,1764531040030,-150.0,0.0001446,2]
[395192152,1764531040040,-200.0,0.0001446,2]
[395192153,1764531040050,-500.0,0.0001446,2]
[395192154,1764531040060,-250.0,0.00014462,2]
[395192155,1764531040070,-550.0,0.00014462,2]
[395192156,1764531040079,-500.0,0.00014462,2]
[395192157,1764531040088,-255.0,0.00014498,2]
[395192158,1764531040097,-429.32,0.00014505,2]
[395192159,1764531040107,-151.0,0.00014521,2]
[395192160,1764531040116,-500.0,0.00014597,2]
[395192161,1764531040125,-461.0,0.00014597,2]
[395192162,1764531040137,-500.0,0.00014597,2]
[395192163,1764531040147,-500.0,0.00014599,2]
[395192164,1764531040156,-331.86558707,0.000146,2]
[395192165,1764531040166,-475.53829889,0.00014603,2]
[395192166,1764531040175,-600.0,0.00014605,2]
[395192167,1764531040184,-195.0,0.0001467,2]
[395192168,1764531040193,-195.0,0.0001467,2]
[395192169,1764531040203,-195.0,0.0001467,2]
[395192171,1764531040212,-195.0,0.0001467,2]
[395192173,1764531040221,-250.0,0.0001467,2]
[395192175,1764531040232,-420.0,0.00014675,2]
[395192177,1764531040241,-1600.0,0.00014705,2]
[395192179,1764531040250,-1680.0,0.00014725,2]
[395192181,1764531040259,-300.0,0.00014728,2]
[395192183,1764531040268,-500.0,0.00014734,2]
[395192185,1764531040277,-150.0,0.00014734,2]
[395192187,1764531040286,-500.0,0.00014736,2]
[395192189,1764531040296,-1627.43,0.00014743,2]
[395192191,1764531040305,-5497.54128669,0.00014755,2]
[395192193,1764531040315,-3132.09673448,0.00014778,2]
[395192195,1764531040324,-429.34,0.00014779,2]
[395192197,1764531040333,-6357.83,0.00014799,2]
[395192199,1764531040344,-200.0,0.00014871,2]
[395192201,1764531040353,-200.0,0.00014871,2]
[395192203,1764531040362,-500.0,0.00014871,2]
[395192205,1764531040370,-500.0,0.00014873,2]
[395192207,1764531040380,-383.93,0.00014888,2]
[395192208,1764531040389,-2751.0,0.00014891,2]
[395192209,1764531040398,-225.29829185,0.000149,2]
[395192210,1764531040407,-262.11806232,0.0001499,2]
[395192211,1764531040416,-231908.91347059,0.00015,4]
[395192212,1764531040425,-9999.999999,0.00015,2]
[395192213,1764531040434,-500.0,0.00015008,2]
[395192214,1764531040444,-500.0,0.0001501,2]
[395192215,1764531040453,-475.53829889,0.00015063,2]
[395192216,1764531040463,-150.0,0.00015068,2]
[395192217,1764531040472,-151.0,0.00015069,2]
[395192218,1764531040757,-5497.54128669,0.00015113,2]
[395192219,1764531040787,-3132.09673448,0.00015143,2]
[395192220,1764531040796,-500.0,0.00015145,2]
[395192221,1764531040806,-500.0,0.00015147,2]
[395192222,1764531040815,-158.66258758,0.00015205,2]
[395192223,1764531040824,-562.62199788,0.00015282,2]
[395192224,1764531040833,-514.93375674,0.00015284,2]
[395192225,1764531040843,-1517.64,0.000153,2]
[395192226,1764531040852,-40320.80524108,0.00015306,2]
[395192227,1764531040863,-9999.99,0.0001531,2]
[395192228,1764531040872,-2942.24,0.0001531,2]
[395192229,1764531040881,-999.99,0.0001531,2]
[395192230,1764531040890,-150.99,0.0001531,2]
[395192231,1764531040899,-11857.78639408,0.000154,2]
[395192232,1764531040908,-504.53167572,0.000154,2]
[395192233,1764531040918,-1122.45,0.00015409,2]
[395192234,1764531040928,-200.0,0.00015419,2]
[395192235,1764531040937,-200.0,0.00015419,2]
[395192236,1764531040949,-150.0,0.00015466,2]
[395192237,1764531040961,-5497.54128669,0.0001547,2]
[395192238,1764531040970,-3132.09673448,0.00015508,2]
[395192239,1764531040980,-475.53829889,0.00015522,2]
[395192240,1764531040989,-151.0,0.00015617,2]
[395192241,1764531040998,-433.0,0.00015703,2]
[395192242,1764531041009,-5497.54128669,0.00015828,2]
[395192243,1764531041018,-3132.09673448,0.00015873,2]
[395192244,1764531041027,-200.0,0.00015967,2]
[395192245,1764531041037,-200.0,0.00015967,2]
[395192246,1764531041046,-165.35460481,0.00015973,2]
[395192247,1764531041055,-500.0,0.00015973,2]
[395192248,1764531041064,-179.01901015,0.00015973,2]
[395192249,1764531041074,-377.58744144,0.00015973,2]
[395192250,1764531041083,-168.14188112,0.00015973,2]
[395192251,1764531041093,-500.0,0.00015973,2]
[395192252,1764531041102,-514.18188343,0.00015973,2]
[395192253,1764531041111,-500.0,0.00015973,2]
[395192254,1764531041121,-500.0,0.00015973,2]
[395192255,1764531041130,-500.0,0.00015973,2]
[395192256,1764531041139,-501.18621372,0.00015973,2]
[395192257,1764531041148,-500.0,0.00015973,2]
[395192258,1764531041158,-498.99397056,0.00015973,2]
[395192259,1764531041167,-162.44041448,0.00015973,2]
[395192260,1764531041176,-500.0,0.00015973,2]
[395192261,1764531041185,-475.53829889,0.00015982,2]
[395192262,1764531041195,-151.0,0.00015997,2]
[395192263,1764531041205,-501.71453986,0.00016,2]
[395192264,1764531041214,-23666.07387272,0.00016,2]
[395192265,1764531041225,-217943.91760979,0.00016,2]
[395192266,1764531041234,-264809.57728438,0.00016,4]
[395192267,1764531041243,-260.43529292,0.00016051,2]
[395192268,1764531041253,-587.0,0.00016087,2]
[395192269,1764531041264,-758.47,0.00016116,2]
[395192270,1764531041274,-151.0,0.00016165,2]
[395192271,1764531041283,-5497.54128669,0.00016185,2]
[395192272,1764531041292,-2351.0,0.00016198,2]
[395192273,1764531041302,-5000.00947869,0.000162,5]
[395192274,1764531041311,-3132.09673448,0.00016238,2]
[395192275,1764531041320,-200.0,0.0001634,2]
[395192276,1764531041329,-150.0,0.00016438,2]
[395192277,1764531041338,-500.0,0.00016438,2]
[395192278,1764531041348,-369.20177635,0.00016438,2]
[395192279,1764531041359,-11295.13,0.00016438,2]
[395192280,1764531041369,-5434.75,0.00016438,2]
[395192281,1764531041380,-163.91,0.0001644,2]
[395192282,1764531041390,-475.53829889,0.00016442,2]
[395192283,1764531041399,-207.4,0.00016514,2]
[395192284,1764531041408,-241.58745639,0.00016515,2]
[395192285,1764531041419,-246.37141229,0.00016515,2]
[395192286,1764531041428,-1000.0,0.00016521,2]
[395192287,1764531041440,-500.91562357,0.00016521,2]
[395192288,1764531041449,-5497.54128669,0.00016543,2]
[395192289,1764531041458,-1600.0,0.00016544,2]
[395192290,1764531041469,-150.0,0.00016575,2]
[395192291,1764531041478,-1998.22847857,0.000166,2]
[395192292,1764531041488,-3132.09673448,0.00016603,2]
[395192293,1764531041498,-150.0,0.00016712,2]
[395192294,1764531041507,-207.95472836,0.00016849,2]
[395192295,1764531041516,-1071.72672438,0.000169,2]
[395192296,1764531041526,-5497.54128669,0.000169,2]
[395192297,1764531041535,-1530.3064307,0.000169,2]
[395192298,1764531041544,-201.41866534,0.00016902,2]
[395192299,1764531041554,-475.53829889,0.00016902,2]
[395192300,1764531041564,-166.70831757,0.00016902,2]
[395192301,1764531041573,-3132.09673448,0.00016968,2]
[395192302,1764531041583,-387.27463028,0.00016973,2]
[395192303,1764531041592,-500.0,0.00016973,2]
[395192304,1764531041602,-500.0,0.00016973,2]
[395192305,1764531041612,-500.0,0.00016973,2]
[395192306,1764531041622,-500.0,0.00016973,2]
[395192307,1764531041631,-500.0,0.00016973,2]
[395192308,1764531041641,-317.71167471,0.00016973,2]
[395192309,1764531041650,-161.86969264,0.00016973,2]
[395192310,1764531041660,-500.0,0.00016973,2]
[395192311,1764531041670,-166.09514249,0.00016973,2]
[395192312,1764531041681,-500.0,0.00016973,2]
[395192313,1764531041690,-500.0,0.00016973,2]
[395192314,1764531041700,-223.79453252,0.00016973,2]
[395192315,1764531041710,-500.0,0.00016973,2]
[395192316,1764531041720,-507.02104113,0.00016973,2]
[395192317,1764531041729,-500.0,0.00016973,2]
[395192318,1764531041739,-500.0,0.00016973,2]
[395192319,1764531041748,-500.0,0.00016973,2]
[395192320,1764531041757,-500.0,0.00016973,2]
[395192321,1764531041767,-200.00768026,0.00016973,2]
[395192322,1764531041776,-538.70531259,0.00016973,2]
[395192323,1764531041786,-500.0,0.00016973,2]
[395192324,1764531041795,-500.0,0.00016973,2]
[395192325,1764531041804,-500.0,0.00016973,2]
[395192326,1764531041813,-355.5,0.00016973,2]
[395192327,1764531041822,-500.0,0.00016973,2]
[395192328,1764531041833,-500.99004668,0.00016973,2]
[395192329,1764531041842,-500.0,0.00016973,2]
[395192330,1764531041852,-500.0,0.00016973,2]
[395192331,1764531041863,-504.3033742,0.00016973,2]
[395192332,1764531041875,-501.16592491,0.00016973,2]
[395192333,1764531041885,-500.0,0.00016973,2]
[395192334,1764531041895,-500.0,0.00016973,2]
[395192335,1764531041905,-500.0,0.00016973,2]
[395192336,1764531041915,-574.02142297,0.00016973,2]
[395192337,1764531041928,-500.0,0.00016973,2]
[395192338,1764531041937,-262.11806232,0.0001699,2]
[395192339,1764531041946,-262.11806232,0.0001699,2]
[395192340,1764531041955,-151.0,0.00016997,2]
[395192341,1764531041964,-231.83347088,0.00016999,2]
[395192342,1764531041973,-300.0,0.00016999,2]
[395192343,1764531041983,-300.0,0.00016999,2]
[395192344,1764531041993,-2000.0,0.00017,2]
[395192345,1764531042003,-2000.0,0.00017,2]
[395192346,1764531042014,-2000.0,0.00017,2]
[395192347,1764531042024,-2000.0,0.00017,2]
[395192348,1764531042034,-2000.0,0.00017,2]
[395192349,1764531042042,-2000.0,0.00017,2]
[395192350,1764531042051,-2000.0,0.00017,2]
[395192351,1764531042060,-2000.0,0.00017,2]
[395192352,1764531042069,-1425.646,0.00017,2]
[395192353,1764531042079,-1000.0,0.00017,2]
[395192354,1764531042088,-1000.0,0.00017,2]
[395192355,1764531042097,-1000.0,0.00017,2]
[395192356,1764531042106,-2000.0,0.00017,2]
[395192357,1764531042116,-250.0,0.00017,2]
[395192358,1764531042126,-74617.02504029,0.00017,2]
[395192359,1764531042136,-2737372.70978321,0.00017,2]
[395192360,1764531042155,-501.41000007,0.00017,2]
[395192361,1764531042177,-11597.84384896,0.00017,2]
[395192362,1764531042251,-776.94153782,0.00017,2]
[395192363,1764531042265,-111632.75821255,0.00017,2]
[395192364,1764531042276,-656.01449307,0.00017,2]
[395192365,1764531042288,-737.99884669,0.00017,2]
[395192366,1764531042300,-1646.62174586,0.00017,2]
[395192367,1764531042312,-265.695,0.00017,2]
[395192368,1764531042323,-1632175.18733405,0.00017,2]
[395192369,1764531042337,-1434.6,0.00017,2]
[395192370,1764531042349,-476.50814112,0.00017,2]
[395192371,1764531042360,-29185.24241572,0.00017,2]
[395192372,1764531042372,-1981.47544961,0.00017,2]
[395192376,1764531042958,-150.0,0.00013775,2]
[395192377,1764531042968,-449.92508293,0.000169,2]
[395192378,1764531042978,-311.37530707,0.00017,2]
[395192380,1764531045867,-998.71216798,0.00017,2]
[395192381,1764531045924,-10715.08173211,0.00017,2]
[395192382,1764531046032,-917.54723462,0.00017,2]
[395192383,1764531046141,-595.36008,0.00017,2]
[395192384,1764531046152,-8515.84474961,0.00017,2]
[395192438,1764531351591,195.06,7.767e-05,2]
[395192442,1764532232105,-340.46647592,0.00013682,2]
[395192443,1764532232116,-150.0,0.00013773,2]
[395192444,1764532232126,-264.48400736,0.00013773,2]
[395192445,1764532232137,-35.51599264,0.00013773,2]
[395192446,1764532232147,-317.08280065,0.00013773,2]
[395192447,1764532232159,-882.91719935,0.00013773,2]
[395192448,1764532232168,-200.0,0.00013773,2]
[395192449,1764532232177,-181.1124022,0.00013774,2]
[395192453,1764532232252,-18.8875978,0.00013774,2]
[395192455,1764532232261,-500.0,0.00013774,2]
[395192457,1764532232271,-500.0,0.00013774,2]
[395192459,1764532232280,-500.0,0.00013774,2]
[395192461,1764532232289,-500.0,0.00013774,2]
[395192463,1764532232299,-500.0,0.00013774,2]
[395192465,1764532232308,-500.0,0.00013774,2]
[395192467,1764532232317,-500.0,0.00013774,2]
[395192468,1764532232327,-500.0,0.00013774,2]
[395192469,1764532232337,-500.0,0.00013774,2]
[395192471,1764532232346,-500.0,0.00013774,2]
[395192473,1764532232354,-200.0,0.00013774,2]
[395192475,1764532232363,-500.0,0.00013774,2]
[395192477,1764532232372,-500.0,0.00013774,2]
[395192479,1764532232382,-500.0,0.00013774,2]
[395192481,1764532232391,-500.0,0.00013774,2]
[395192483,1764532232400,-500.0,0.00013774,2]
[395192485,1764532232409,-500.0,0.00013774,2]
[395192487,1764532232418,-500.0,0.00013774,2]
[395192489,1764532232428,-500.0,0.00013774,2]
[395192491,1764532232438,-533.67854975,0.00013774,2]
[395192493,1764532232447,-506.31894944,0.00013774,2]
[395192494,1764532232455,-200.0,0.00013774,2]
[395192495,1764532232464,-151.0,0.00013774,2]
[395192496,1764532232473,-151.0,0.00013774,2]
[395192497,1764532232482,-151.0,0.00013774,2]
[395192498,1764532232491,-151.0,0.00013774,2]
[395192499,1764532232499,-151.0,0.00013774,2]
[395192500,1764532232508,-151.0,0.00013774,2]
[395192501,1764532232516,-151.0,0.00013774,2]
[395192502,1764532232525,-151.0,0.00013774,2]
[395192503,1764532232534,-151.0,0.00013774,2]
[395192504,1764532232543,-151.0,0.00013774,2]
[395192505,1764532232551,-151.0,0.00013774,2]
[395192506,1764532232560,-151.0,0.00013774,2]
[395192507,1764532232569,-151.0,0.00013774,2]
[395192508,1764532232578,-593.16,0.00013774,2]
[395192509,1764532232586,-500.0,0.00013776,2]
[395192510,1764532232595,-170.74226421,0.00013776,2]
[395192511,1764532232604,-500.0,0.00013776,2]
[395192512,1764532232612,-500.0,0.00013776,2]
[395192514,1764532232621,-500.0,0.00013776,2]
[395192516,1764532232630,-500.0,0.00013776,2]
[395192518,1764532232639,-287.24322792,0.00013776,2]
[395192520,1764532232648,-398.97600619,0.00013776,2]
[395192522,1764532232657,-500.0,0.00013776,2]
[395192524,1764532232667,-500.0,0.00013776,2]
[395192526,1764532232676,-500.0,0.00013776,2]
[395192528,1764532232686,-500.0,0.00013776,2]
[395192530,1764532232695,-500.0,0.00013782,2]
[395192532,1764532232705,-500.0,0.00013782,2]
[395192534,1764532232714,-249.74881273,0.00013782,2]
[395192536,1764532232723,-500.0,0.00013782,2]
[395192538,1764532232732,-500.0,0.00013782,2]
[395192540,1764532232741,-500.0,0.00013782,2]
[395192541,1764532232750,-500.0,0.00013782,2]
[395192543,1764532232759,-500.0,0.00013782,2]
[395192545,1764532232769,-500.0,0.00013782,2]
[395192547,1764532232777,-500.0,0.00013782,2]
[395192549,1764532232786,-500.0,0.00013782,2]
[395192551,1764532232795,-500.0,0.00013782,2]
[395192554,1764532232805,-500.0,0.00013782,2]
[395192556,1764532232815,-500.0,0.00013782,2]
[395192558,1764532232824,-500.0,0.00013782,2]
[395192560,1764532232833,-500.0,0.00013782,2]
[395192562,1764532232842,-500.0,0.00013782,2]
[395192564,1764532232852,-500.0,0.00013782,2]
[395192566,1764532232861,-522.95339156,0.00013782,2]
[395192568,1764532232871,-412.69296363,0.00013782,2]
[395192570,1764532232881,-540.71917716,0.00013782,2]
[395192572,1764532232890,-507.29,0.00013782,2]
[395192574,1764532232899,-507.29,0.00013782,2]
[395192576,1764532232908,-507.29,0.00013782,2]
[395192578,1764532232917,-500.0,0.00013782,2]
[395192580,1764532232926,-500.0,0.00013782,2]
[395192582,1764532232935,-500.0,0.00013782,2]
[395192584,1764532232944,-500.0,0.00013782,2]
[395192586,1764532232952,-500.0,0.00013782,2]
[395192588,1764532232961,-500.0,0.00013782,2]
[395192589,1764532232970,-500.0,0.00013782,2]
[395192591,1764532232979,-500.0,0.00013782,2]
[395192593,1764532232989,-500.0,0.00013782,2]
[395192595,1764532232998,-500.0,0.00013782,2]
[395192597,1764532233007,-500.0,0.00013782,2]
[395192599,1764532233015,-500.0,0.00013782,2]
[395192601,1764532233024,-500.0,0.00013782,2]
[395192603,1764532233033,-500.0,0.00013782,2]
[395192605,1764532233042,-500.0,0.00013782,2]
[395192607,1764532233050,-360.12591813,0.00013782,2]
[395192609,1764532233059,-500.0,0.00013782,2]
[395192610,1764532233068,-500.0,0.00013782,2]
[395192611,1764532233077,-500.0,0.00013782,2]
[395192612,1764532233086,-500.0,0.00013782,2]
[395192613,1764532233095,-500.0,0.00013782,2]